bitfinex/quotes_ETHUSD_20251215
["timestamp","ask_amount","ask_price","bid_price","bid_amount"]
[1765815516217,4.05514546,3011.1,3011.0,0.002]
[1765815516435,4.58914546,3011.1,3011.0,0.002]
[1765815516930,20.29978075,3011.1,3011.0,0.002]
[1765815517140,20.29978075,3011.1,3010.3,0.002]
[1765815517141,4.908119,3010.7,3010.3,0.002]
[1765815517357,6.215167,3010.5,3010.3,0.002]
[1765815517723,24.325954,3010.4,3010.3,0.002]
[1765815518028,0.405504,3010.3,3009.1,0.002]
[1765815518224,0.0944,3009.8,3009.1,0.002]
[1765815518423,0.6284,3009.8,3009.1,0.002]
[1765815518631,1.0975,3009.8,3009.1,0.002]
[1765815519032,10.70991289,3009.8,3009.1,0.002]
[1765815519244,1.0975,3009.8,3009.1,0.002]
[1765815519427,4.41997989,3009.8,3009.1,0.002]
[1765815519819,1.0975,3009.8,3009.1,0.002]
[1765815520024,1.5497,3009.8,3009.1,0.002]
[1765815520326,21.95035218,3009.8,3009.1,0.002]
[1765815520525,8.39975818,3009.8,3009.1,0.002]
[1765815520734,8.39975818,3009.8,3009.1,0.1896]
[1765815520735,1.19187172,3009.8,3009.1,0.1896]
[1765815520954,0.5466,3009.8,3009.1,0.1896]
[1765815521260,0.5466,3009.8,3009.2,9.97142708]
[1765815521261,1.0816,3009.8,3009.2,9.97142708]
[1765815521428,0.5954,3009.8,3009.2,9.97142708]
[1765815521755,0.5954,3009.8,3009.2,6.64828472]
[1765815521948,1.5165,3009.8,3009.2,6.64828472]
[1765815522555,1.5165,3009.8,3009.2,3.32514236]
[1765815523053,1.5165,3009.8,3009.6,0.002]
[1765815525457,0.4691,3010.5,3009.7,0.9398]
[1765815525633,0.535,3010.4,3009.7,0.9398]
[1765815527042,0.535,3010.4,3009.7,0.002]
[1765815527531,0.03987572,3011.0,3009.7,0.0352259]
[1765815527532,0.50897572,3011.0,3009.7,0.0352259]
[1765815527732,0.535,3010.9,3009.7,0.4737]
[1765815528130,3.010532,3010.8,3009.7,0.4737]
[1765815528330,0.4691,3010.8,3009.7,0.002]
[1765815528554,0.4691,3010.7,3009.7,0.002]
[1765815528967,2.929037,3010.6,3009.7,0.002]
[1765815529256,0.4691,3010.7,3009.7,0.002]
[1765815529435,0.4691,3010.6,3009.7,0.58247529]
[1765815529640,0.535,3010.5,3009.7,1.63773303]
[1765815529831,0.535,3010.5,3009.7,2.10943303]
[1765815530033,0.535,3010.5,3009.8,0.91042879]
[1765815530252,0.535,3010.5,3009.8,0.877204]
[1765815530447,0.535,3010.5,3009.9,0.4717]
[1765815531355,0.535,3010.5,3010.0,6.64451826]
[1765815532557,0.5342,3010.5,3010.0,6.64451826]
[1765815532756,0.4691,3010.4,3010.0,3.32225913]
[1765815532957,0.3324,3010.1,3010.0,3.32225913]
[1765815533162,0.001,3010.7,3010.0,4.26005913]
[1765815533330,0.535,3010.6,3010.2,6.6440768]
[1765815533534,0.001,3010.7,3010.2,6.6440768]
[1765815533733,0.535,3010.5,3010.2,6.6440768]
[1765815534772,0.4898,3010.3,3009.7,0.002]
[1765815534943,0.3119,3010.4,3009.9,3.32226457]
[1765815534944,0.0031,3010.2,3009.9,3.32226457]
[1765815535146,0.0031,3010.2,3010.0,3.32220076]
[1765815535365,0.001,3010.7,3010.0,6.64445989]
[1765815535555,0.535,3010.6,3010.0,9.96671902]
[1765815535777,0.535,3010.6,3010.0,3.32220076]
[1765815535939,0.3324,3010.1,3009.7,0.002]
[1765815536140,0.535,3010.0,3009.7,0.002]
[1765815536341,0.535,3010.0,3009.9,3.3223633]
[1765815536665,1.0041,3010.0,3009.9,3.3223633]
[1765815536868,0.535,3010.0,3009.9,3.3223633]
[1765815537169,0.535,3010.0,3009.8,3.32247442]
[1765815537170,1.3351,3010.0,3009.8,3.32243602]
[1765815537472,0.535,3010.0,3009.7,0.002]
[1765815537680,0.535,3009.9,3009.7,0.002]
[1765815538165,0.535,3009.8,3009.7,0.002]
[1765815538586,0.6505,3010.1,3009.7,0.002]
[1765815538886,0.8664,3009.8,3009.7,0.002]
[1765815539543,1.3341,3009.8,3009.7,0.002]
[1765815540253,0.8664,3009.8,3009.7,0.002]
[1765815540440,1.3341,3009.8,3009.7,0.002]
[1765815540645,0.3324,3009.8,3009.7,0.002]
[1765815540947,0.8664,3009.8,3009.7,0.002]
[1765815541141,1.3341,3009.8,3009.7,0.002]
[1765815541544,0.534,3009.8,3009.7,0.002]
[1765815542944,0.9861,3009.8,3009.7,0.002]
[1765815543470,1.3354,3009.8,3009.7,0.002]
[1765815543771,0.534,3009.8,3009.7,0.002]
[1765815543972,0.00767,3010.1,3009.7,0.4614]
[1765815544145,0.534,3010.0,3009.7,0.9344]
[1765815544546,0.00767,3010.1,3009.7,0.9344]
[1765815544547,0.00767,3010.1,3009.9,0.4594]
[1765815544742,0.00767,3010.1,3010.0,0.9324]
[1765815544949,0.00767,3010.1,3009.7,0.002]
[1765815545651,0.2922,3009.8,3009.7,0.002]
[1765815546063,0.1976,3010.0,3009.7,0.002]
[1765815546451,0.534,3009.9,3009.7,0.002]
[1765815546674,0.2902,3009.8,3009.7,0.002]
[1765815546876,0.00767,3010.1,3009.8,0.4594]
[1765815547099,0.00767,3010.1,3010.0,0.4594]
[1765815547377,0.00767,3010.1,3009.7,0.002]
[1765815547577,0.00767,3010.1,3009.7,1.46097929]
[1765815547901,0.00767,3010.1,3010.0,0.4594]
[1765815548071,0.00767,3010.1,3009.8,1.14310814]
[1765815549787,0.00767,3010.1,3010.0,0.4594]
[1765815550153,0.00767,3010.1,3010.0,0.9324]
[1765815550354,0.00767,3010.1,3009.9,6.64473902]
[1765815550675,0.00767,3010.1,3010.0,0.002]
[1765815550878,0.00767,3010.1,3010.0,2.17954919]
[1765815551183,0.00767,3010.1,3010.0,2.58505319]
[1765815551564,0.00767,3010.1,3010.0,5.90731232]
[1765815551751,0.00767,3010.1,3010.0,5.92731232]
[1765815552550,1e-08,3010.1,3010.0,5.96053491]
[1765815552750,0.001,3010.7,3010.5,0.98597929]
[1765815552995,0.001,3010.7,3010.6,0.864904]
[1765815553155,0.001,3010.7,3010.6,1.337904]
[1765815553554,0.001,3010.7,3010.6,4.65950102]
[1765815553980,0.001,3010.7,3010.6,4.27399702]
[1765815554163,0.001,3010.7,3010.6,3.34159702]
[1765815554368,0.001,3010.7,3010.6,3.92207231]
[1765815554776,0.001,3010.7,3010.6,3.32159702]
[1765815555795,0.0002,3010.7,3010.4,0.58047529]
[1765815556881,0.0002,3010.7,3010.6,0.4594]
[1765815557086,0.0002,3010.7,3010.6,0.49261597]
[1765815557385,0.0002,3010.7,3010.5,0.473]
[1765815557386,0.0002,3010.7,3010.4,0.58047529]
[1765815557755,0.0002,3010.7,3010.5,3.32170735]
[1765815557756,0.4957,3010.7,3010.5,3.32170735]
[1765815557978,0.2496,3010.5,3010.0,0.002]
[1765815558174,0.2496,3010.5,3010.1,0.02]
[1765815558383,0.4955,3010.4,3010.1,0.02]
[1765815558688,0.2496,3010.2,3010.1,0.02]
[1765815558875,0.2496,3010.2,3010.0,0.002]
[1765815559184,1.032,3010.1,3010.0,0.002]
[1765815559887,0.5365,3010.1,3010.0,0.002]
[1765815560088,1.032,3010.1,3010.0,0.002]
[1765815560289,0.03987572,3010.5,3010.0,0.002]
[1765815560586,0.534,3010.1,3010.0,0.002]
[1765815560886,0.04007572,3010.7,3010.0,0.002]
[1765815561062,0.534,3010.6,3010.1,0.1922]
[1765815561458,0.0002,3010.7,3010.5,0.4594]
[1765815561971,0.0002,3010.7,3010.1,0.1922]
[1765815562176,0.0002,3010.7,3010.5,3.32166724]
[1765815563680,0.0002,3010.7,3010.0,0.002]
[1765815563681,0.7426,3010.6,3010.0,3.32415055]
[1765815563992,0.2472,3010.1,3010.0,0.002]
[1765815564173,0.7812,3010.1,3010.0,0.002]
[1765815564491,7.90451076,3010.1,3010.0,0.002]
[1765815564660,4.06474876,3010.1,3010.0,0.002]
[1765815564860,1.2766,3010.1,3010.0,0.002]
[1765815565688,14.28114276,3010.1,3010.0,0.002]
[1765815565865,11.93237576,3010.1,3010.0,0.002]
[1765815566585,11.67887976,3010.1,3010.0,0.002]
[1765815566792,0.03987572,3010.5,3010.0,0.002]
[1765815567091,1.0295,3010.4,3010.0,0.002]
[1765815567391,0.534,3010.4,3010.0,0.002]
[1765815567593,0.2496,3010.1,3010.0,0.002]
[1765815567794,0.7836,3010.1,3010.0,0.002]
[1765815568101,1.2766,3010.1,3010.0,0.002]
[1765815568895,0.5342,3010.7,3010.0,7.65058021]
[1765815569108,0.5342,3010.7,3010.1,0.1922]
[1765815570170,0.5342,3010.7,3010.2,6.6440768]
[1765815570368,0.5342,3010.7,3010.2,7.64090672]
[1765815571293,0.5342,3010.7,3010.2,10.96294512]
[1765815571495,0.5342,3010.7,3010.2,11.44384512]
[1765815572067,0.0002,3010.7,3010.3,0.58047529]
[1765815572275,0.0002,3010.7,3010.6,0.4626]
[1765815573168,0.0002,3010.7,3010.6,0.9388]
[1765815573402,0.0002,3010.7,3010.4,1.20243204]
[1765815574198,0.0002,3010.7,3010.6,4.36467231]
[1765815574564,0.0002,3010.7,3010.6,4.84087231]
[1765815574770,0.0002,3010.7,3010.6,6.18287716]
[1765815575991,0.0002,3010.7,3010.6,5.30117316]
[1765815576586,0.0002,3010.7,3010.6,5.77737316]
[1765815576788,0.0002,3010.7,3010.6,4.83857316]
[1765815577105,0.0002,3010.7,3010.6,3.90207231]
[1765815577608,0.0002,3010.7,3010.6,4.84087231]
[1765815577773,0.0002,3010.7,3010.6,4.36467231]
[1765815577973,0.0002,3010.7,3010.6,3.90207231]
[1765815578390,0.0002,3010.7,3010.6,3.32159702]
[1765815578588,0.0002,3010.7,3010.3,6.64385608]
[1765815578902,0.4514,3010.7,3010.4,0.58047529]
[1765815579210,0.4514,3010.7,3010.3,3.32192804]
[1765815579211,0.2932,3010.5,3010.3,3.32192804]
[1765815579415,0.4512,3010.6,3010.3,6.64385608]
[1765815579614,0.4512,3010.6,3010.2,3.32199227]
[1765815579774,0.0029,3010.2,3010.1,0.002]
[1765815579974,0.5369,3010.2,3010.1,0.002]
[1765815580272,0.9881,3010.2,3010.1,0.002]
[1765815580486,0.9881,3010.2,3010.1,3.32414876]
[1765815580702,0.9881,3010.2,3010.1,0.002]
[1765815581475,0.534,3010.2,3010.1,0.002]
[1765815581886,1.01,3010.2,3010.1,0.002]
[1765815582074,0.534,3010.2,3010.1,0.002]
[1765815582480,0.8272,3010.2,3010.1,0.002]
[1765815582882,0.534,3010.2,3010.1,0.002]
[1765815583326,0.0002,3010.7,3010.1,1.1233]
[1765815583525,0.534,3010.4,3010.1,1.1233]
[1765815584527,0.0002,3010.7,3010.3,0.4626]
[1765815584736,0.534,3010.5,3010.3,0.4626]
[1765815584909,0.0002,3010.7,3010.6,3.78419702]
[1765815585098,0.0002,3010.7,3010.6,5.52838628]
[1765815585301,0.0002,3010.7,3010.6,6.00458628]
[1765815586452,0.0002,3010.7,3010.6,6.02458628]
[1765815586591,0.001,3012.0,3011.5,0.58047529]
[1765815586792,0.001,3012.0,3011.9,0.1825]
[1765815586992,0.001,3012.0,3011.9,3.32016335]
[1765815588489,0.1046,3012.0,3011.9,3.32016335]
[1765815588917,0.001,3012.0,3011.9,0.9388]
[1765815589123,0.001,3012.0,3011.6,3.32049408]
[1765815589327,0.001,3012.0,3011.6,9.96148224]
[1765815590196,0.001,3012.0,3011.6,6.64098816]
[1765815590406,0.001,3012.0,3011.6,11.01569297]
[1765815590619,0.001,3012.0,3011.7,0.4762]
[1765815590819,0.001,3012.0,3011.6,7.69519889]
[1765815591122,0.535,3012.0,3011.6,11.01569297]
[1765815592115,0.535,3012.0,3011.6,7.69519889]
[1765815592623,0.535,3012.0,3011.2,0.58047529]
[1765815592624,0.1036,3011.7,3011.2,0.58047529]
[1765815592829,0.001,3011.6,3010.8,3.32131024]
[1765815593120,0.534,3011.5,3010.9,0.58047529]
[1765815594196,0.534,3011.5,3010.7,9.96446007]
[1765815594397,0.534,3011.5,3010.8,1.65474229]
[1765815594602,0.9852,3011.5,3010.8,1.65474229]
[1765815594925,0.9852,3011.5,3010.7,6.64297338]
[1765815595088,0.9852,3011.5,3010.8,0.58047529]
[1765815595293,3.36015191,3011.8,3010.8,0.58047529]
[1765815595294,0.03987572,3011.8,3010.8,0.58047529]
[1765815595626,0.534,3011.7,3010.8,0.58047529]
[1765815596004,0.4512,3011.6,3010.8,0.58047529]
[1765815597120,0.4512,3011.6,3010.9,6.64253212]
[1765815597623,0.03987572,3011.8,3010.9,9.96379818]
[1765815597828,0.6504,3011.9,3010.9,9.96379818]
[1765815597829,0.1992,3011.9,3011.0,1.08988684]
[1765815598033,0.001,3011.9,3011.2,0.405504]
[1765815598328,0.001,3011.9,3011.8,0.4626]
[1765815599096,0.001,3011.9,3011.8,3.78287359]
[1765815599314,0.001,3011.9,3011.8,4.25907359]
[1765815599506,0.001,3011.9,3011.8,5.01701899]
[1765815600311,0.001,3011.9,3011.8,5.42252299]
[1765815600495,0.001,3011.9,3011.8,5.59749428]
[1765815600901,0.001,3011.9,3011.8,5.12129428]
[1765815601098,0.001,3011.9,3011.8,4.36334888]
[1765815601426,0.001,3011.9,3011.8,5.24505288]
[1765815601829,0.534,3012.7,3011.8,5.24505288]
[1765815601830,0.50117572,3013.8,3012.4,0.4515]
[1765815602124,0.50117572,3013.8,3011.9,1.47067929]
[1765815602125,0.1837,3012.9,3012.0,0.405504]
[1765815602323,0.1831,3012.9,3012.0,0.890204]
[1765815602524,0.1831,3012.9,3012.0,2.36538137]
[1765815603303,0.1831,3012.9,3012.1,9.95982867]
[1765815603503,0.1831,3012.9,3012.1,6.63988578]
[1765815604006,0.001,3013.1,3012.2,0.405504]
[1765815604337,0.001,3013.1,3013.0,0.4515]
[1765815604533,0.001,3013.1,3013.0,1.65276756]
[1765815604742,0.001,3013.1,3013.0,0.9362]
[1765815605224,0.001,3013.1,3013.0,4.25515121]
[1765815605435,0.001,3013.1,3013.0,3.31895121]
[1765815606325,0.001,3013.1,3013.0,4.25515121]
[1765815606534,0.001,3013.1,3013.0,4.8356265]
[1765815606741,0.001,3013.1,3013.0,6.32251271]
[1765815607037,0.001,3013.1,3013.0,5.38631271]
[1765815607237,0.001,3013.1,3013.0,3.8994265]
[1765815607427,0.001,3013.1,3013.0,4.8356265]
[1765815608139,0.001,3013.1,3013.0,5.2411305]
[1765815609341,0.001,3013.1,3013.0,3.8994265]
[1765815609648,0.4623,3013.1,3013.0,3.31895121]
[1765815609815,0.001,3013.1,3012.3,3.31969958]
[1765815610019,0.001,3013.1,3012.6,0.58047529]
[1765815610227,0.001,3013.1,3013.0,3.31895121]
[1765815611540,0.001,3013.1,3012.7,9.9578451]
[1765815611756,0.001,3013.1,3012.7,6.6385634]
[1765815612218,0.001,3013.1,3012.7,9.9578451]
[1765815612416,0.4613,3012.8,3012.0,1.47517737]
[1765815612646,0.3039,3013.0,3012.2,3.31981053]
[1765815612647,0.003,3012.7,3012.2,3.31981053]
[1765815612817,0.1837,3012.9,3012.6,3.31939188]
[1765815613348,0.4613,3012.7,3012.6,3.31939188]
[1765815613513,0.9953,3012.7,3011.9,3.32014039]
[1765815613713,0.0012,3012.6,3012.0,0.6640414]
[1765815613941,0.0012,3012.6,3011.9,0.58047529]
[1765815614839,0.4613,3012.5,3011.8,6.64054718]
[1765815615040,0.0012,3012.6,3011.9,0.61367692]
[1765815615214,0.534,3012.7,3011.9,1.06517529]
[1765815615415,0.534,3012.7,3012.0,1.43462697]
[1765815615639,0.534,3012.7,3012.1,6.63988578]
[1765815615846,0.4613,3012.6,3012.1,3.31994289]
[1765815616016,0.1221,3012.2,3012.1,3.31994289]
[1765815616518,0.58,3012.2,3012.1,3.31994289]
[1765815616721,0.58,3012.2,3011.1,1.63249511]
[1765815616946,0.68947572,3012.1,3010.8,0.4847]
[1765815617120,0.534,3012.0,3011.5,3.32055485]
[1765815617331,0.9953,3012.0,3011.6,3.32047372]
[1765815617842,3.45688383,3011.7,3010.9,3.32126606]
[1765815618055,0.0046,3011.5,3010.9,6.64253212]
[1765815618345,0.534,3011.4,3010.9,6.64253212]
[1765815618858,0.9953,3011.4,3010.9,6.64253212]
[1765815619160,0.1837,3012.0,3011.3,0.6465]
[1765815619335,0.534,3012.0,3011.4,0.03320714]
[1765815619651,0.03987572,3012.6,3011.5,9.96181302]
[1765815619832,0.534,3012.5,3011.6,1.14324923]
[1765815620022,0.534,3012.5,3010.9,4.51951927]
[1765815620023,0.3188,3011.6,3010.9,3.3211574]
[1765815620214,0.5367,3011.5,3010.9,3.32123068]
[1765815620419,0.267,3011.0,3010.6,0.002]
[1765815620650,0.267,3011.0,3010.7,6.64297338]
[1765815621412,0.267,3011.0,3010.7,3.32148669]
[1765815621617,0.4613,3010.8,3010.6,0.002]
[1765815621813,0.4677,3010.9,3010.6,0.002]
[1765815621814,0.5368,3010.7,3010.6,0.002]
[1765815622018,0.9981,3010.7,3010.6,0.002]
[1765815623243,0.0636,3011.9,3010.6,0.4535]
[1765815623445,0.4613,3011.6,3010.6,0.002]
[1765815623814,0.58047529,3011.4,3010.6,0.002]
[1765815624245,3.32060434,3011.5,3010.6,0.002]
[1765815624246,0.58047529,3011.5,3010.6,0.002]
[1765815624439,0.4613,3011.3,3010.6,0.002]
[1765815625330,0.0636,3011.9,3010.6,0.002]
[1765815625652,0.5968,3011.9,3010.8,0.98597929]
[1765815625947,0.5968,3011.9,3011.1,6.64209092]
[1765815626121,0.5968,3011.9,3011.1,6.83709092]
[1765815626316,0.5968,3011.9,3011.2,0.405504]
[1765815626520,0.534,3011.8,3011.2,0.405504]
[1765815626750,0.534,3011.8,3011.3,1.38846858]
[1765815626950,0.534,3011.8,3011.1,6.64209092]
[1765815626951,0.4613,3011.7,3011.1,6.64209092]
[1765815627317,0.4613,3011.7,3011.1,9.96313638]
[1765815627643,0.0628,3011.9,3011.1,9.96313638]
[1765815627825,0.534,3011.6,3011.1,9.96313638]
[1765815628025,0.534,3011.6,3011.3,6.64164978]
[1765815628428,0.534,3011.6,3011.3,6.64364978]
[1765815628623,0.1837,3012.2,3011.5,0.4515]
[1765815628852,0.534,3012.1,3011.5,0.4515]
[1765815629454,0.534,3012.3,3011.5,0.9362]
[1765815630048,0.534,3012.3,3011.6,9.96148224]
[1765815630352,0.534,3012.3,3011.7,1.08976822]
[1765815631339,1.0182,3012.3,3011.7,1.08976822]
[1765815631539,0.0628,3011.8,3011.6,3.32049408]
[1765815631749,0.3098,3011.8,3011.6,3.32049408]
[1765815632050,0.3098,3011.8,3011.5,3.32057154]
[1765815632236,0.4559,3012.2,3011.5,9.96178022]
[1765815632441,0.534,3012.3,3011.5,9.96178022]
[1765815632638,0.1837,3012.4,3011.5,9.96178022]
[1765815632639,0.1837,3012.4,3011.6,0.70167124]
[1765815632827,0.534,3012.2,3011.6,0.6684663]
[1765815633349,0.001,3013.1,3012.1,0.6577]
[1765815633552,0.534,3013.0,3012.3,0.4716]
[1765815633765,0.001,3013.1,3012.5,0.405504]
[1765815633931,0.001,3013.1,3012.7,0.405504]
[1765815634137,0.001,3013.1,3012.8,6.63834306]
[1765815634342,0.001,3013.1,3012.8,7.68285334]
[1765815634938,0.535,3013.1,3012.8,7.68285334]
[1765815635149,0.001,3013.1,3012.8,7.68285334]
[1765815637425,0.001,3013.1,3012.9,0.405504]
[1765815637648,0.001,3013.1,3012.9,0.893004]
[1765815637851,0.001,3013.1,3013.0,0.85758573]
[1765815638153,0.001,3013.1,3013.0,4.17653694]
[1765815639155,0.001,3013.1,3013.0,6.12161623]
[1765815641571,0.001,3013.1,3013.0,4.75701223]
[1765815642174,0.001,3013.1,3013.0,5.71611223]
[1765815642484,0.001,3013.1,3013.0,5.74930174]
[1765815642645,0.001,3013.1,3013.0,6.15480574]
[1765815642847,0.001,3013.1,3013.0,6.12161623]
[1765815644777,0.001,3013.1,3013.0,5.63411623]
[1765815644986,0.001,3013.1,3013.0,6.12161623]
[1765815645447,0.001,3013.1,3013.0,3.8994265]
[1765815646393,0.48,3013.1,3013.0,3.31895121]
[1765815646878,0.5688,3013.1,3012.9,3.31898438]
[1765815647074,0.0009,3013.0,3012.9,3.31898438]
[1765815647281,0.0009,3013.0,3012.2,0.4875]
[1765815647282,0.4568,3013.0,3012.2,0.4875]
[1765815647461,0.3045,3012.9,3012.5,0.58047529]
[1765815647647,0.3045,3012.9,3012.4,3.31958161]
[1765815647844,0.8375,3012.9,3012.4,3.31958161]
[1765815648047,0.8375,3012.9,3012.5,0.58047529]
[1765815648346,0.8375,3012.9,3012.6,6.63878376]
[1765815648780,0.7268,3012.9,3011.9,0.1861]
[1765815648953,0.533,3012.8,3012.5,6.63899546]
[1765815649881,0.001,3013.1,3012.6,1.06797529]
[1765815650078,0.001,3013.1,3012.6,0.58047529]
[1765815650290,0.4569,3013.1,3012.6,0.58047529]
[1765815650778,0.3065,3012.7,3011.9,0.002]
[1765815650982,0.457,3012.6,3011.9,0.002]
[1765815651280,0.457,3012.6,3011.9,3.32216335]
[1765815651281,0.1115,3012.0,3011.9,3.32216335]
[1765815651586,0.1115,3012.0,3011.9,0.002]
[1765815651787,0.5651,3012.0,3011.9,0.002]
[1765815652855,3.88515312,3012.0,3011.9,0.002]
[1765815653058,3.92502884,3012.0,3011.9,0.002]
[1765815653493,0.5651,3012.0,3011.9,0.002]
[1765815653658,4.41815312,3012.0,3011.9,0.002]
[1765815654187,1.0981,3012.0,3011.9,0.002]
[1765815654496,10.62133212,3012.0,3011.9,0.002]
[1765815654853,7.78882112,3012.0,3011.9,0.002]
[1765815655054,4.41815312,3012.0,3011.9,0.002]
[1765815655662,4.99862841,3012.0,3011.9,0.002]
[1765815655980,4.99862841,3012.0,3011.3,0.002]
[1765815655981,0.58047529,3011.9,3011.3,0.002]
[1765815656158,10.675553,3011.4,3011.3,0.002]
[1765815656370,23.057389,3011.3,3010.6,0.002]
[1765815656560,0.1061,3010.7,3010.6,0.002]
[1765815656965,3.88258669,3010.7,3010.6,0.002]
[1765815657790,34.46306198,3010.7,3010.6,0.002]
[1765815657992,25.17758198,3010.7,3010.6,0.002]
[1765815658562,25.58308598,3010.7,3010.6,0.002]
[1765815658789,19.13741098,3010.7,3010.6,0.002]
[1765815659766,35.40156598,3010.7,3010.6,0.002]
[1765815660095,17.10523398,3010.7,3010.6,0.002]
[1765815660291,15.78576398,3010.7,3010.6,0.002]
[1765815660540,15.78576398,3010.7,3010.1,0.002]
[1765815660541,31.44637929,3010.6,3010.1,0.002]
[1765815660670,0.1041,3010.2,3010.1,0.002]
[1765815661002,3.4261384,3010.2,3010.1,0.002]
[1765815661216,17.0687384,3010.2,3010.1,0.002]
[1765815661503,15.83021369,3010.2,3010.1,0.002]
[1765815661713,4.99651369,3010.2,3010.1,0.002]
[1765815662269,0.4548,3010.6,3010.1,0.002]
[1765815662470,0.9888,3010.5,3010.1,0.002]
[1765815662765,9.27714729,3010.2,3010.1,0.002]
[1765815663006,12.59918569,3010.2,3010.1,0.002]
[1765815663189,13.05048569,3010.2,3010.1,0.002]
[1765815663390,0.5611,3010.2,3010.1,0.002]
[1765815663595,0.4513,3010.6,3010.1,0.002]
[1765815663799,0.534,3010.5,3010.1,0.002]
[1765815664114,0.9888,3010.5,3010.1,0.002]
[1765815664538,0.4548,3010.4,3010.1,0.002]
[1765815664822,0.1098,3010.2,3010.1,0.002]
[1765815665496,0.5611,3010.2,3010.1,0.002]
[1765815666799,6.33,3011.2,3010.1,0.002]
[1765815667119,0.1098,3010.2,3010.1,0.002]
[1765815667411,0.4548,3010.7,3010.1,0.002]
[1765815667581,0.534,3010.6,3010.1,0.002]
[1765815668183,0.534,3010.6,3010.1,0.6527]
[1765815668385,0.1947,3011.4,3010.5,0.4823]
[1765815668684,0.534,3011.3,3010.1,0.1839]
[1765815669196,3.77566332,3011.3,3010.2,6.6440768]
[1765815669386,0.534,3011.2,3010.2,9.9661152]
[1765815669783,0.1947,3011.4,3010.3,0.58047529]
[1765815670015,0.534,3011.3,3010.4,0.405504]
[1765815670216,0.4548,3012.3,3010.7,7.01327397]
[1765815670387,0.9888,3012.2,3011.2,0.1819]
[1765815670806,0.4548,3012.6,3011.3,0.4688]
[1765815671008,0.534,3012.5,3011.4,0.405504]
[1765815671184,0.1939,3012.7,3011.6,0.405504]
[1765815671385,0.001,3012.9,3011.6,0.405504]
[1765815671386,0.001,3012.9,3011.8,0.405504]
[1765815671691,18.230356,3012.6,3011.8,0.02]
[1765815671902,0.6542,3012.8,3011.7,0.405504]
[1765815672216,0.5332,3012.5,3011.7,0.405504]
[1765815672879,0.001,3011.9,3011.7,0.405504]
[1765815673317,0.001,3011.9,3011.8,3.32027359]
[1765815674014,0.001,3011.9,3011.8,4.77505288]
[1765815674522,0.001,3013.2,3011.9,0.98597929]
[1765815674692,0.001,3013.2,3012.6,0.1819]
[1765815675411,0.001,3013.2,3012.7,3.7880817]
[1765815675586,0.001,3013.2,3012.8,0.82653083]
[1765815676105,0.001,3013.2,3012.8,2.28131012]
[1765815677490,0.001,3013.2,3012.8,5.60048165]
[1765815679926,0.001,3013.2,3012.8,5.13168165]
[1765815680131,0.001,3013.2,3012.8,5.60048165]
[1765815681931,0.001,3014.2,3013.2,0.405504]
[1765815682130,0.001,3014.2,3014.1,0.1819]
[1765815682631,0.001,3014.2,3014.1,0.6642]
[1765815682833,0.001,3014.2,3013.7,1.04927529]
[1765815683054,0.001,3014.2,3013.6,0.405504]
[1765815683237,0.001,3014.2,3014.1,0.4823]
[1765815683433,0.001,3014.2,3014.1,3.80003995]
[1765815683933,0.001,3014.2,3014.1,5.9666081]
[1765815684827,0.001,3014.2,3014.1,12.66501787]
[1765815685022,0.001,3014.4,3014.1,15.98275782]
[1765815685333,0.001,3014.4,3014.3,0.887804]
[1765815685552,0.001,3014.4,3014.3,4.78579911]
[1765815685739,0.001,3014.4,3014.3,6.91088934]
[1765815686434,0.001,3015.4,3014.4,0.98597929]
[1765815686637,0.001,3015.4,3014.9,0.98597929]
[1765815686934,0.001,3015.4,3014.9,1.45477929]
[1765815687344,0.001,3015.4,3014.9,0.58047529]
[1765815687634,0.001,3015.4,3014.9,0.4688]
[1765815688824,0.001,3015.4,3015.3,0.6642]
[1765815689211,0.001,3015.4,3015.3,1.538504]
[1765815689516,0.001,3015.4,3015.3,1.75040193]
[1765815689834,0.001,3015.4,3015.3,5.64729681]
[1765815690613,0.001,3015.4,3015.3,3.89689488]
[1765815691241,0.001,3015.4,3015.3,4.38249488]
[1765815691543,0.001,3015.4,3015.3,5.28349888]
[1765815692208,0.001,3015.4,3015.3,4.30239888]
[1765815692512,0.001,3015.4,3015.3,3.89689488]
[1765815692722,0.001,3015.4,3015.3,3.31641959]
[1765815692936,0.001,3015.4,3015.2,3.31646989]
[1765815692937,0.5483,3015.4,3015.2,3.31646989]
[1765815693138,0.469,3015.4,3015.3,3.31641959]
[1765815693306,0.001,3015.4,3015.3,3.80861959]
[1765815693510,0.001,3015.4,3015.3,3.31641959]
[1765815693941,0.001,3015.4,3015.3,3.80861959]
[1765815694240,0.001,3015.4,3015.3,5.42273148]
[1765815694447,0.001,3015.4,3015.3,3.80861959]
[1765815694661,0.001,3015.4,3015.3,3.31641959]
[1765815694853,0.0803,3015.4,3015.2,3.31645935]
[1765815695060,1.0097,3015.3,3014.9,3.31680101]
[1765815695358,0.2067,3014.8,3014.3,6.63503964]
[1765815695641,0.2059,3014.8,3014.4,0.58047529]
[1765815695847,0.2059,3014.8,3014.2,0.58047529]
[1765815696213,0.472,3015.2,3014.2,2.1481348]
[1765815696411,0.533,3015.3,3014.2,2.1481348]
[1765815696614,0.533,3015.3,3014.5,6.69840977]
[1765815696942,0.533,3015.3,3014.4,0.405504]